fUSD/lending_fUSD_20240726
["ID","MTS","AMOUNT","RATE_DAILY","PERIOD"]
[333266237,1722004236111,-192.340438,0.00010999,2]
[333266238,1722004236120,-192.340438,0.00010999,2]
[333266239,1722004236130,-151.0,0.00010999,2]
[333266240,1722004236139,-151.0,0.00010999,2]
[333266241,1722004236148,-151.0,0.00010999,2]
[333266242,1722004236156,-151.0,0.00010999,2]
[333266243,1722004236166,-151.0,0.00010999,2]
[333266244,1722004236175,-151.0,0.00010999,2]
[333266245,1722004236185,-196.811368,0.00010999,2]
[333266246,1722004236195,-503.11,0.00010999,2]
[333266247,1722004236204,-503.11,0.00010999,2]
[333266248,1722004236213,-503.11,0.00010999,2]
[333266249,1722004236222,-503.11,0.00010999,2]
[333266250,1722004236231,-503.11,0.00010999,2]
[333266251,1722004236241,-503.11,0.00010999,2]
[333266252,1722004236250,-503.11,0.00010999,2]
[333266253,1722004236259,-503.11,0.00010999,2]
[333266254,1722004236268,-503.11,0.00010999,2]
[333266255,1722004236278,-503.11,0.00010999,2]
[333266256,1722004236288,-503.11,0.00010999,2]
[333266257,1722004236297,-500.0,0.00010999,2]
[333266258,1722004236306,-500.0,0.00010999,2]
[333266259,1722004236316,-500.0,0.00010999,2]
[333266260,1722004236325,-500.0,0.00010999,2]
[333266261,1722004236334,-500.0,0.00010999,2]
[333266262,1722004236343,-500.0,0.00010999,2]
[333266263,1722004236353,-500.0,0.00010999,2]
[333266264,1722004236362,-500.0,0.00010999,2]
[333266265,1722004236371,-500.0,0.00010999,2]
[333266266,1722004236380,-500.0,0.00010999,2]
[333266267,1722004236391,-500.0,0.00010999,2]
[333266268,1722004236400,-207.47,0.00010999,2]
[333266269,1722004236409,-500.0,0.00010999,2]
[333266270,1722004236419,-500.0,0.00010999,2]
[333266271,1722004236428,-500.0,0.00010999,2]
[333266272,1722004236442,-500.0,0.00010999,2]
[333266273,1722004236451,-500.0,0.00010999,2]
[333266274,1722004236460,-500.0,0.00010999,2]
[333266275,1722004236470,-500.0,0.00010999,2]
[333266276,1722004236481,-500.0,0.00010999,2]
[333266277,1722004236491,-500.0,0.00010999,2]
[333266278,1722004236500,-500.0,0.00010999,2]
[333266279,1722004236509,-500.0,0.00010999,2]
[333266280,1722004236520,-166.82,0.00010999,2]
[333266281,1722004236529,-500.0,0.00010999,2]
[333266282,1722004236539,-500.0,0.00010999,2]
[333266283,1722004236547,-500.0,0.00010999,2]
[333266284,1722004236558,-500.0,0.00010999,2]
[333266285,1722004236567,-500.0,0.00010999,2]
[333266286,1722004236576,-500.0,0.00010999,2]
[333266287,1722004236585,-500.0,0.00010999,2]
[333266288,1722004236595,-500.0,0.00010999,2]
[333266289,1722004236604,-500.0,0.00010999,2]
[333266290,1722004236614,-500.0,0.00010999,2]
[333266291,1722004236623,-500.0,0.00010999,2]
[333266292,1722004236633,-172.37,0.00010999,2]
[333266293,1722004236642,-500.0,0.00010999,2]
[333266294,1722004236652,-500.0,0.00010999,2]
[333266295,1722004236661,-500.0,0.00010999,2]
[333266296,1722004236670,-500.0,0.00010999,2]
[333266297,1722004236680,-444.9,0.00010999,2]
[333266298,1722004236691,-500.0,0.00010999,2]
[333266299,1722004236700,-500.0,0.00010999,2]
[333266300,1722004236709,-451.40592637,0.00010999,2]
[333266301,1722004236718,-500.0,0.00010999,2]
[333266302,1722004236727,-500.0,0.00010999,2]
[333266303,1722004236737,-500.0,0.00010999,2]
[333266304,1722004236746,-154.89292255,0.00010999,2]
[333266305,1722004236755,-441761.8763332,0.00011,2]
[333266306,1722004236764,-219076.60694919,0.00011,2]
[333266307,1722004236774,-38247.6673212,0.00011,2]
[333266308,1722004236789,-135261.72099972,0.00011,2]
[333266309,1722004236801,-667.36237526,0.00011,2]
[333266311,1722004239130,-32553.016,0.00011,2]
[333266312,1722004239142,-260.36085285,0.00011,2]
[333266313,1722004239153,-12542.92017493,0.00011,2]
[333266314,1722004239164,-709.68560842,0.00011,2]
[333266315,1722004239187,-279.36,0.00011,2]
[333266316,1722004239198,-33900.0,0.00011,2]
[333266317,1722004239222,-67750.0,0.00011,2]
[333266328,1722004240028,-2572.05427572,0.00011,2]
[333266331,1722004240238,-1217.016,0.00011,2]
[333266332,1722004240273,-350.4453975,0.00011,2]
[333266333,1722004240284,-10160.95054943,0.00011,2]
[333266401,1722004242929,-250.0,0.00010657,2]
[333266403,1722004242940,-1540.03620496,0.00011,2]
[333266405,1722004242950,-112788.16130912,0.00011,2]
[333266406,1722004243133,-573161.80161313,0.00011,2]
[333266407,1722004243257,-12515.96928785,0.00011,2]
[333266571,1722004245984,-602.11876127,0.00011,2]
[333266573,1722004246586,-2318.42279138,0.00011,2]
[333266575,1722004246598,-4857.28348906,0.00011,2]
[333266577,1722004246609,-870.66039763,0.00011,2]
[333266578,1722004246623,-922.26269289,0.00011,2]
[333266579,1722004246634,-432.27653367,0.00011,2]
[333266580,1722004246646,-28755.8266352,0.00011,2]
[333266581,1722004246659,-1349.56,0.00011,2]
[333266582,1722004246670,-776.31930374,0.00011,2]
[333266583,1722004246681,-731.34227642,0.00011,2]
[333266584,1722004246693,-677.0,0.00011,2]
[333266589,1722004685399,150.0,0.000182,120]
[333266590,1722004752594,159.95,0.0001337,30]
[333266591,1722005098331,155.0,6e-05,2]
[333266592,1722005122439,1000.0,0.000182,120]
[333266593,1722005130081,165.91433334,6e-05,2]
[333266594,1722005130103,165.91433334,6e-05,2]
[333266595,1722005130123,31.75207067,6e-05,2]
[333266596,1722005134290,165.91433334,6e-05,2]
[333266597,1722005134312,54.21026289,6e-05,2]
[333266598,1722005134594,111.70407045,6e-05,2]
[333266599,1722005134615,165.91433334,6e-05,2]
[333266600,1722005134635,165.91433334,6e-05,2]
[333266601,1722005134656,165.91433334,6e-05,2]
[333266602,1722005134679,165.91433334,6e-05,2]
[333266603,1722005134701,165.91433334,6e-05,2]
[333266604,1722005134721,165.91433334,6e-05,2]
[333266605,1722005134742,165.91433334,6e-05,2]
[333266606,1722005134764,165.91433334,6e-05,2]
[333266607,1722005134785,165.91433334,6e-05,2]
[333266608,1722005134806,165.91433334,6e-05,2]
[333266609,1722005134826,165.91433334,6e-05,2]
[333266610,1722005134850,165.91433274,6e-05,2]
[333266611,1722005134871,165.91433334,6e-05,2]
[333266612,1722005134892,165.91433334,6e-05,2]
[333266613,1722005134912,165.91433334,6e-05,2]
[333266614,1722005134936,165.91433334,6e-05,2]
[333266615,1722005134958,17601.17749369,6e-05,2]
[333266616,1722005135361,961.30384944,6e-05,2]
[333266617,1722005136274,871.22841201,6e-05,2]
[333266618,1722005137939,150.0,6e-05,2]
[333266619,1722005137961,150.0,6e-05,2]
[333266620,1722005137983,150.0,6e-05,2]
[333266621,1722005138006,772.30541732,6e-05,2]
[333266622,1722005142730,150.0,6e-05,2]
[333266623,1722005142751,150.0,6e-05,2]
[333266624,1722005142772,150.0,6e-05,2]
[333266625,1722005142793,150.0,6e-05,2]
[333266626,1722005142817,150.0,6e-05,2]
[333266627,1722005142841,150.0,6e-05,2]
[333266628,1722005142862,150.0,6e-05,2]
[333266629,1722005142885,150.0,6e-05,2]
[333266630,1722005142906,150.0,6e-05,2]
[333266631,1722005142932,150.0,6e-05,2]
[333266632,1722005142954,150.0,6e-05,2]
[333266633,1722005142976,150.0,6e-05,2]
[333266634,1722005142998,150.0,6e-05,2]
[333266635,1722005143019,150.0,6e-05,2]
[333266636,1722005143043,150.0,6e-05,2]
[333266637,1722005143064,150.0,6e-05,2]
[333266638,1722005143087,233542.61202924,6e-05,2]
[333266639,1722005144449,150.0,6e-05,2]
[333266640,1722005144470,74.46863623,6e-05,2]
[333266641,1722005146933,150.0,6e-05,2]
[333266642,1722005146952,49.73247078,6e-05,2]
[333266643,1722005149812,150.0,6e-05,2]
[333266644,1722005149834,150.0,6e-05,2]
[333266645,1722005149859,150.0,6e-05,2]
[333266646,1722005149881,150.0,6e-05,2]
[333266647,1722005149903,150.0,6e-05,2]
[333266648,1722005149925,150.0,6e-05,2]
[333266649,1722005149946,150.0,6e-05,2]
[333266650,1722005149967,182.25126313,6e-05,2]
[333266651,1722005149988,91.8464701,6e-05,2]
[333266652,1722005151688,58.1535299,6e-05,2]
[333266653,1722005151709,150.0,6e-05,2]
[333266654,1722005151731,235734.45849934,6e-05,2]
[333266655,1722005151852,291.25364528,6e-05,2]
[333266656,1722005151978,155.0,6e-05,2]
[333266657,1722005154535,155.20228337,6e-05,2]
[333266658,1722005185246,150.0,6e-05,2]
[333266659,1722005185267,5.0,6e-05,2]
[333266660,1722005185795,145.0,6e-05,2]
[333266661,1722005185816,150.0,6e-05,2]
[333266662,1722005185839,150.0,6e-05,2]
[333266663,1722005185866,150.0,6e-05,2]
[333266664,1722005185888,150.0,6e-05,2]
[333266665,1722005185911,150.0,6e-05,2]
[333266666,1722005185934,150.0,6e-05,2]
[333266667,1722005185965,324.73875933,6e-05,2]
[333266668,1722005189705,150.0,6e-05,2]
[333266669,1722005189726,5.0,6e-05,2]
[333266670,1722005190726,150.0,6e-05,2]
[333266671,1722005190748,150.0,6e-05,2]
[333266672,1722005190770,150.0,6e-05,2]
[333266673,1722005190790,35.05125098,6e-05,2]
[333266674,1722005193576,150.0,6e-05,2]
[333266675,1722005193598,5.0,6e-05,2]
[333266676,1722005194317,7569.89827325,6e-05,2]
[333266677,1722005194855,158.87294729,6e-05,2]
[333266678,1722005214121,150.0,6e-05,2]
[333266679,1722005214149,150.0,6e-05,2]
[333266680,1722005214174,111.44480674,6e-05,2]
[333266681,1722005216536,150.0,6e-05,2]
[333266682,1722005216557,150.0,6e-05,2]
[333266683,1722005216578,150.0,6e-05,2]
[333266684,1722005216599,150.0,6e-05,2]
[333266685,1722005216619,150.0,6e-05,2]
[333266686,1722005216875,150.0,6e-05,2]
[333266687,1722005216897,150.0,6e-05,2]
[333266688,1722005216918,150.0,6e-05,2]
[333266689,1722005216941,150.0,6e-05,2]
[333266690,1722005216962,150.0,6e-05,2]
[333266691,1722005216984,150.0,6e-05,2]
[333266692,1722005217004,150.0,6e-05,2]
[333266693,1722005217027,18567.51089698,6e-05,2]
[333266694,1722005221248,150.0,6e-05,2]
[333266695,1722005221271,213.58073735,6e-05,2]
[333266696,1722005232323,174.30283527,6e-05,2]
[333266697,1722005232344,150.0,6e-05,2]
[333266698,1722005232365,150.0,6e-05,2]
[333266699,1722005232386,150.0,6e-05,2]
[333266700,1722005232407,150.0,6e-05,2]
[333266701,1722005232433,186.85877071,6e-05,2]
[333266702,1722005239390,150.0,6e-05,2]
[333266703,1722005239410,150.0,6e-05,2]
[333266704,1722005239436,150.0,6e-05,2]
[333266705,1722005239457,150.0,6e-05,2]
[333266706,1722005239479,150.0,6e-05,2]
[333266707,1722005239502,150.0,6e-05,2]
[333266708,1722005239524,14.23887127,6e-05,2]
[333266709,1722005253241,871.22841201,6e-05,2]
[333266710,1722005253935,155.0,6e-05,2]
[333266711,1722005256817,291.25364528,6e-05,2]
[333266712,1722005258690,150.0,6e-05,2]
[333266713,1722005258710,150.0,6e-05,2]
[333266714,1722005258731,150.0,6e-05,2]
[333266715,1722005258752,285.76112873,6e-05,2]
[333266716,1722005258788,235206.85090051,6e-05,2]
[333266717,1722005268227,871.22841201,6e-05,2]
[333266718,1722005268772,1369.73875933,6e-05,2]
[333266719,1722005273685,235942.61202924,6e-05,2]
[333266720,1722005284837,155.0,6e-05,2]
[333266721,1722005300448,158.87294729,6e-05,2]
[333266722,1722005301450,2637.73686294,6e-05,2]
[333266723,1722005310570,20367.51089698,6e-05,2]
[333266724,1722005318262,160.49311464,6e-05,2]
[333266725,1722005320132,363.58073735,6e-05,2]
[333266726,1722005328140,411.44480674,6e-05,2]
[333266732,1722005348802,291.25364528,6e-05,2]
[333266733,1722005351775,1369.73875933,6e-05,2]
[333266734,1722005357932,155.0,6e-05,2]
[333266735,1722005359684,235942.61202924,6e-05,2]
[333266736,1722005359714,155.0,6e-05,2]
[333266744,1722005374692,235942.61202924,6e-05,2]
[333266745,1722005395236,871.22841201,6e-05,2]
[333266747,1722005403552,150.0,6e-05,2]
[333266748,1722005403773,150.0,6e-05,2]
[333266749,1722005403977,150.0,6e-05,2]
[333266750,1722005404197,156.54198804,6e-05,2]
[333266752,1722005408463,158.87294729,6e-05,2]
[333266753,1722005409132,363.58073735,6e-05,2]
[333266754,1722005417595,179.98242515,6e-05,2]
[333266755,1722005419551,20367.51089698,6e-05,2]
[333266766,1722005433698,-150.0,7.272e-05,2]
[333266767,1722005433708,-300.0,7.272e-05,2]
[333266768,1722005433718,-300.0,7.272e-05,2]
[333266769,1722005433728,-411.44480674,7.273e-05,2]
[333266770,1722005433738,-291.25604871,7.273e-05,2]
[333266772,1722005433752,-1369.73875933,7.273e-05,2]
[333266773,1722005433763,-155.0,7.273e-05,2]
[333266774,1722005433773,-155.55923325,7.273e-05,2]
[333266775,1722005433783,-23637.99870828,7.273e-05,2]
[333266776,1722005433979,-56343.14291473,7.273e-05,2]
[333266777,1722005433993,-24650.06035111,7.273e-05,2]
[333266778,1722005434006,-3360.42368,7.273e-05,2]
[333266779,1722005434099,-127950.98637512,7.273e-05,2]
[333266780,1722005434109,-302.87483183,7.273e-05,2]
[333266781,1722005434120,-160.28,7.775e-05,2]
[333266782,1722005434130,-255.0,7.999e-05,2]
[333266783,1722005434139,-420.0,7.999e-05,2]
[333266784,1722005434149,-420.0,7.999e-05,2]
[333266785,1722005434160,-1888.623241,8.178e-05,2]
[333266786,1722005434170,-1102.17,8.219e-05,2]
[333266787,1722005434181,-587.0,8.799e-05,2]
[333266788,1722005434192,-17203.7118,8.85e-05,2]
[333266789,1722005434201,-9236.68269313,9.049e-05,2]
[333266790,1722005434211,-20000.0,9.05e-05,2]
[333266791,1722005434221,-23900.0,9.652e-05,2]
[333266792,1722005434231,-823.0,9.678e-05,2]
[333266793,1722005434240,-10000.0,9.697e-05,2]
[333266794,1722005434250,-1245.75,9.698e-05,2]
[333266795,1722005434259,-194.46,9.706e-05,2]
[333266796,1722005434269,-200.0,9.738e-05,2]
[333266797,1722005434278,-499.99,9.738e-05,2]
[333266798,1722005434288,-964.4,9.738e-05,2]
[333266799,1722005434298,-250.0,9.747e-05,2]
[333266800,1722005434307,-150.99,9.769e-05,2]
[333266801,1722005434316,-195.9,9.819e-05,2]
[333266802,1722005434325,-1000.0,9.819e-05,2]
[333266803,1722005434335,-1250.0,0.0001,2]
[333266804,1722005434344,-355.9,0.00010078,2]
[333266805,1722005434354,-171.36,0.00010137,2]
[333266806,1722005434364,-425.61,0.00010378,2]
[333266807,1722005434373,-387.33,0.00010378,2]
[333266808,1722005434383,-355.9,0.00010378,2]
[333266809,1722005434393,-1102.17,0.00010461,2]
[333266810,1722005434403,-4633.27,0.00010475,2]
[333266811,1722005434412,-474.01,0.00010475,2]
[333266812,1722005434421,-1152.0,0.00010646,2]
[333266813,1722005434431,-780.2523,0.000107,2]
[333266814,1722005434443,-1500.0,0.00010727,2]
[333266815,1722005434452,-150.0,0.00010729,2]
[333266816,1722005434462,-1500.0,0.00010735,2]
[333266817,1722005434472,-150.0,0.00010739,2]
[333266818,1722005434481,-150.0,0.00010739,2]
[333266819,1722005434492,-1500.0,0.00010739,2]
[333266820,1722005434502,-150.0,0.0001074,2]
[333266821,1722005434511,-150.0,0.00010741,2]
[333266822,1722005434521,-150.0,0.00010741,2]
[333266823,1722005434531,-787.212,0.00010741,2]
[333266824,1722005434540,-150.0,0.00010742,2]
[333266825,1722005434550,-150.0,0.00010743,2]
[333266826,1722005434560,-150.0,0.00010744,2]
[333266827,1722005434569,-150.0,0.00010745,2]
[333266828,1722005434579,-1500.0,0.00010749,2]
[333266829,1722005434588,-150.0,0.0001075,2]
[333266830,1722005434598,-150.0,0.0001075,2]
[333266831,1722005434607,-1500.0,0.00010753,2]
[333266832,1722005434617,-150.0,0.00010755,2]
[333266833,1722005434627,-150.0,0.00010755,2]
[333266834,1722005434637,-150.0,0.00010756,2]
[333266835,1722005434647,-150.0,0.00010756,2]
[333266836,1722005434657,-150.0,0.00010756,2]
[333266837,1722005434667,-1500.0,0.00010759,2]
[333266838,1722005434676,-150.0,0.00010761,2]
[333266839,1722005434686,-150.0,0.00010762,2]
[333266840,1722005434699,-150.0,0.00010763,2]
[333266841,1722005434710,-150.0,0.00010763,2]
[333266842,1722005434720,-150.0,0.00010764,2]
[333266843,1722005434729,-1500.0,0.00010764,2]
[333266844,1722005434739,-150.0,0.00010766,2]
[333266845,1722005434749,-1500.0,0.00010766,2]
[333266846,1722005434759,-300.0,0.00010768,2]
[333266847,1722005434769,-300.0,0.00010769,2]
[333266848,1722005434778,-1500.0,0.0001077,2]
[333266849,1722005434788,-150.0,0.00010771,2]
[333266850,1722005434798,-150.0,0.00010773,2]
[333266851,1722005434808,-1500.0,0.00010774,2]
[333266852,1722005434817,-150.0,0.00010775,2]
[333266853,1722005434827,-150.0,0.00010776,2]
[333266854,1722005434837,-1500.0,0.00010781,2]
[333266855,1722005434847,-150.0,0.00010782,2]
[333266856,1722005434856,-150.0,0.00010783,2]
[333266857,1722005434866,-1269.14533444,0.00010786,2]
[333266858,1722005434875,-150.0,0.0001079,2]
[333266859,1722005434885,-150.0,0.00010793,2]
[333266860,1722005434894,-150.0,0.00010794,2]
[333266861,1722005434904,-150.0,0.00010795,2]
[333266862,1722005434913,-150.0,0.00010795,2]
[333266863,1722005434923,-150.0,0.00010797,2]
[333266864,1722005434932,-150.0,0.00010799,2]
[333266865,1722005434944,-150.0,0.000108,2]
[333266866,1722005434956,-150.0,0.000108,2]
[333266867,1722005434966,-1467.03851726,0.000108,2]
[333266868,1722005434975,-150.0,0.00010801,2]
[333266869,1722005434985,-150.0,0.00010804,2]
[333266870,1722005434994,-1500.0,0.00010804,2]
[333266871,1722005435004,-1500.0,0.00010806,2]
[333266872,1722005435013,-1500.0,0.00010808,2]
[333266873,1722005435022,-150.0,0.00010815,2]
[333266874,1722005435032,-150.0,0.00010819,2]
[333266875,1722005435042,-150.0,0.0001082,2]
[333266876,1722005435051,-150.0,0.0001082,2]
[333266877,1722005435061,-150.0,0.00010821,2]
[333266878,1722005435070,-1500.0,0.00010821,2]
[333266879,1722005435080,-150.0,0.00010823,2]
[333266880,1722005435089,-150.0,0.00010824,2]
[333266881,1722005435098,-150.0,0.00010825,2]
[333266882,1722005435108,-150.0,0.0001083,2]
[333266883,1722005435117,-300.0,0.00010831,2]
[333266884,1722005435127,-1500.0,0.00010835,2]
[333266885,1722005435137,-305.38255821,0.00010837,2]
[333266886,1722005435147,-150.0,0.00010841,2]
[333266887,1722005435156,-150.0,0.00010841,2]
[333266888,1722005435166,-150.0,0.00010842,2]
[333266889,1722005435175,-150.0,0.0001085,2]
[333266890,1722005435185,-150.0,0.00010851,2]
[333266891,1722005435196,-150.0,0.00010854,2]
[333266892,1722005435206,-150.0,0.00010855,2]
[333266893,1722005435216,-150.0,0.00010859,2]
[333266894,1722005435226,-150.0,0.00010859,2]
[333266895,1722005435235,-1500.0,0.0001086,2]
[333266896,1722005435245,-150.0,0.00010863,2]
[333266897,1722005435255,-150.0,0.00010866,2]
[333266898,1722005435265,-1500.0,0.00010866,2]
[333266899,1722005435274,-150.0,0.00010868,2]
[333266900,1722005435285,-150.0,0.00010872,2]
[333266901,1722005435294,-150.0,0.00010872,2]
[333266902,1722005435304,-152.29243002,0.00010874,2]
[333266903,1722005435314,-150.0,0.00010876,2]
[333266904,1722005435324,-150.0,0.00010877,2]
[333266905,1722005435334,-150.0,0.00010877,2]
[333266906,1722005435343,-150.0,0.00010878,2]
[333266907,1722005435353,-150.0,0.00010881,2]
[333266908,1722005435363,-150.0,0.00010885,2]
[333266909,1722005435372,-3000.0,0.0001089,2]
[333266910,1722005435381,-150.0,0.00010895,2]
[333266911,1722005435391,-150.0,0.00010896,2]
[333266912,1722005435400,-150.0,0.00010896,2]
[333266913,1722005435410,-1120.067,0.00010899,2]
[333266914,1722005435419,-1500.0,0.00010899,2]
[333266915,1722005435428,-104389.5983701,0.000109,2]
[333266916,1722005435443,-3366.08591,0.000109,2]
[333266917,1722005435455,-1954.45172408,0.000109,2]
[333267007,1722005440145,-150.0,0.00010733,2]
[333267010,1722005440155,-150.0,0.00010753,2]
[333267012,1722005440166,-150.0,0.00010759,2]
[333267014,1722005440177,-150.0,0.00010763,2]
[333267016,1722005440186,-150.0,0.00010767,2]
[333267018,1722005440196,-21.07115909,0.00010768,2]
[333267020,1722005440207,-128.92884091,0.00010768,2]
[333267022,1722005440216,-150.0,0.00010769,2]
[333267024,1722005440225,-150.0,0.00010773,2]
[333267026,1722005440235,-150.0,0.00010775,2]
[333267028,1722005440244,-150.0,0.00010783,2]
[333267030,1722005440253,-150.0,0.00010784,2]
[333267032,1722005440262,-150.0,0.00010788,2]
[333267034,1722005440272,-150.0,0.00010799,2]
[333267036,1722005440283,-150.0,0.00010813,2]
[333267038,1722005440293,-150.0,0.00010814,2]
[333267040,1722005440303,-150.0,0.00010821,2]
[333267042,1722005440312,-150.0,0.00010828,2]
[333267044,1722005440321,-109.89824143,0.00010831,2]
[333267047,1722005440334,-40.10175857,0.00010831,2]
[333267049,1722005440344,-150.0,0.00010839,2]
[333267051,1722005440353,-150.0,0.0001084,2]
[333267053,1722005440363,-150.0,0.00010846,2]
[333267055,1722005440374,-150.0,0.00010876,2]
[333267057,1722005440385,-150.0,0.00010893,2]
[333267059,1722005440395,-1207.76803143,0.000109,2]
[333267061,1722005440406,-685.3215847,0.000109,2]
[333267064,1722005440422,-1186.12,0.000109,2]
[333267066,1722005440434,-333.49437701,0.000109,2]
[333267068,1722005440446,-574.98736815,0.000109,2]
[333267071,1722005440457,-4295.9824655,0.000109,2]
[333267073,1722005440469,-1068.89864221,0.000109,2]
[333267075,1722005440480,-125937.29152682,0.000109,2]
[333267077,1722005440490,-1772.4321,0.000109,2]
[333267079,1722005440500,-175.32345233,0.000109,2]
[333267081,1722005440510,-167.66739738,0.000109,2]
[333267083,1722005440520,-614.51359985,0.000109,2]
[333267085,1722005440530,-1000.0,0.000109,2]
[333267087,1722005440539,-170.46047083,0.000109,2]
[333267089,1722005440548,-150.0,0.00010902,2]
[333267091,1722005440558,-150.0,0.00010905,2]
[333267093,1722005440567,-150.0,0.00010907,2]
[333267095,1722005440575,-150.0,0.0001091,2]
[333267097,1722005440584,-150.0,0.00010911,2]
[333267099,1722005440593,-150.0,0.00010912,2]
[333267101,1722005440602,-1500.0,0.00010913,2]
[333267103,1722005440611,-150.0,0.00010914,2]
[333267105,1722005440621,-150.0,0.00010915,2]
[333267107,1722005440630,-150.0,0.00010917,2]
[333267109,1722005440638,-150.0,0.00010917,2]
[333267111,1722005440648,-150.0,0.0001092,2]
[333267113,1722005440656,-150.0,0.00010921,2]
[333267115,1722005440666,-150.0,0.00010922,2]
[333267117,1722005440679,-150.0,0.00010922,2]
[333267119,1722005440688,-1500.0,0.00010923,2]
[333267121,1722005440699,-150.0,0.00010924,2]
[333267123,1722005440708,-150.0,0.00010927,2]
[333267125,1722005440718,-150.0,0.00010927,2]
[333267127,1722005440727,-150.0,0.00010928,2]
[333267129,1722005440736,-150.0,0.00010932,2]
[333267131,1722005440745,-1500.0,0.00010932,2]
[333267133,1722005440754,-150.0,0.00010932,2]
[333267135,1722005440763,-150.0,0.00010937,2]
[333267137,1722005440772,-1500.0,0.0001094,2]
[333267139,1722005440781,-150.0,0.0001094,2]
[333267141,1722005440791,-150.0,0.00010942,2]
[333267143,1722005440813,-1500.0,0.00010942,2]
[333267145,1722005440835,-150.0,0.00010943,2]
[333267147,1722005440858,-1500.0,0.00010945,2]
[333267149,1722005440879,-150.0,0.00010946,2]
[333267151,1722005440902,-150.0,0.00010946,2]
[333267153,1722005440925,-150.0,0.00010946,2]
[333267155,1722005440951,-252.7134566,0.00010947,2]
[333267157,1722005440972,-150.0,0.00010948,2]
[333267159,1722005440982,-150.0,0.00010949,2]
[333267161,1722005440991,-150.0,0.0001095,2]
[333267163,1722005441001,-150.0,0.00010952,2]
[333267165,1722005441011,-150.0,0.00010953,2]
[333267167,1722005441020,-150.0,0.00010954,2]
[333267169,1722005441030,-150.0,0.00010955,2]
[333267171,1722005441039,-150.0,0.00010955,2]
[333267173,1722005441048,-1500.0,0.00010956,2]
[333267175,1722005441058,-338.0226125,0.00010958,2]
[333267177,1722005441067,-528.25281299,0.00010958,2]
[333267179,1722005441076,-196.42739146,0.00010958,2]
[333267181,1722005441086,-150.0,0.00010958,2]
[333267183,1722005441095,-500.0,0.00010958,2]
[333267185,1722005441104,-271.68,0.00010959,2]
[333267187,1722005441113,-150.0,0.00010959,2]
[333267189,1722005441123,-150.0,0.00010964,2]
[333267191,1722005441132,-150.0,0.00010966,2]
[333267193,1722005441142,-150.0,0.00010968,2]
[333267195,1722005441151,-150.0,0.00010968,2]
[333267197,1722005441161,-150.0,0.00010968,2]
[333267199,1722005441171,-150.0,0.00010969,2]
[333267201,1722005441181,-150.0,0.0001097,2]